[Event "Late-Titled-Tuesday-Blitz-January-23-2024"]
[Site "Chess.com"]
[Date "2024.01.23"]
[Round "9"]
[White "DefiantChair"]
[Black "FontVella8"]
[Result "0-1"]
[WhiteElo "2592"]
[BlackElo "2750"]
[TimeControl "180+1"]
[EndTime "15:43:17 PST"]
[Termination "FontVella8 won on time"]

1. e4 {[%clk 0:03:00.9]} 1... c6 {[%clk 0:02:54.9]} 2. d4 {[%clk 0:02:59.8]}
2... d5 {[%clk 0:02:55.8]} 3. e5 {[%clk 0:03:00.3]} 3... Bf5 {[%clk 0:02:55.7]}
4. Nf3 {[%clk 0:03:00.7]} 4... e6 {[%clk 0:02:56.1]} 5. Be2 {[%clk 0:03:01.3]}
5... Nd7 {[%clk 0:02:56.7]} 6. Nbd2 {[%clk 0:02:58.9]} 6... h6 {[%clk 0:02:57]}
7. O-O {[%clk 0:02:58.7]} 7... a6 {[%clk 0:02:57.4]} 8. a4 {[%clk 0:02:58.5]}
8... Qc7 {[%clk 0:02:57.3]} 9. Nb3 {[%clk 0:02:58.3]} 9... g5 {[%clk 0:02:52.8]}
10. a5 {[%clk 0:02:57.9]} 10... f6 {[%clk 0:02:51.4]} 11. Re1 {[%clk 0:02:55.4]}
11... fxe5 {[%clk 0:02:48.3]} 12. Nxe5 {[%clk 0:02:55.3]} 12... Nxe5 {[%clk
0:02:48]} 13. dxe5 {[%clk 0:02:56.2]} 13... O-O-O {[%clk 0:02:43.1]} 14. Be3
{[%clk 0:02:49.2]} 14... c5 {[%clk 0:02:40.7]} 15. Bg4 {[%clk 0:02:37.9]} 15...
d4 {[%clk 0:02:34.8]} 16. Bd2 {[%clk 0:02:34.1]} 16... Ne7 {[%clk 0:02:32.9]}
17. Bxf5 {[%clk 0:02:32.2]} 17... Nxf5 {[%clk 0:02:32.8]} 18. Qg4 {[%clk
0:02:17.7]} 18... Rd5 {[%clk 0:02:28.2]} 19. f4 {[%clk 0:02:12.3]} 19... Be7
{[%clk 0:02:22]} 20. c4 {[%clk 0:02:09.2]} 20... Rdd8 {[%clk 0:02:14.3]} 21. Nc1
{[%clk 0:02:06.7]} 21... Rdg8 {[%clk 0:02:08.1]} 22. Nd3 {[%clk 0:01:51.2]}
22... gxf4 {[%clk 0:01:49.6]} 23. Qh3 {[%clk 0:01:50.8]} 23... f3 {[%clk
0:01:41.1]} 24. Nf4 {[%clk 0:01:41.6]} 24... Qc6 {[%clk 0:01:22.7]} 25. Ra3
{[%clk 0:01:27.6]} 25... Bh4 {[%clk 0:01:13.9]} 26. Rf1 {[%clk 0:01:17.2]} 26...
fxg2 {[%clk 0:01:06.7]} 27. Rb1 {[%clk 0:01:02.9]} 27... Qe4 {[%clk 0:01:02.8]}
28. Raa1 {[%clk 0:00:42.8]} 28... Qc2 {[%clk 0:00:23.5]} 29. Rd1 {[%clk
0:00:30.1]} 29... Bg5 {[%clk 0:00:14.1]} 30. Rac1 {[%clk 0:00:23.2]} 30... Qxd2
{[%clk 0:00:13.1]} 31. Rxd2 {[%clk 0:00:18.8]} 31... Bxf4 {[%clk 0:00:13.8]} 32.
Rcd1 {[%clk 0:00:13.3]} 32... Be3+ {[%clk 0:00:13.5]} 33. Rf2 {[%clk 0:00:13.9]}
33... Rg5 {[%clk 0:00:11.6]} 34. Re1 {[%clk 0:00:11.8]} 34... Bxf2+ {[%clk
0:00:10.9]} 35. Kxf2 {[%clk 0:00:11.5]} 35... Rf8 {[%clk 0:00:11.1]} 36. Ke2
{[%clk 0:00:10.8]} 36... g1=Q {[%clk 0:00:10.4]} 37. Rxg1 {[%clk 0:00:10.4]}
37... Rxg1 {[%clk 0:00:11.3]} 38. Kd2 {[%clk 0:00:08.1]} 38... Rfg8 {[%clk
0:00:06.9]} 39. Kc2 {[%clk 0:00:07.5]} 39... R8g2+ {[%clk 0:00:06.7]} 40. Kb3
{[%clk 0:00:07.8]} 40... Re2 {[%clk 0:00:06.2]} 41. Qh5 {[%clk 0:00:07.8]} 41...
Re3+ {[%clk 0:00:04.2]} 42. Ka2 {[%clk 0:00:08]} 42... Rg8 {[%clk 0:00:02.8]}
43. Qf7 {[%clk 0:00:07.7]} 43... Rd8 {[%clk 0:00:02.2]} 44. Qxe6+ {[%clk
0:00:08]} 44... Kb8 {[%clk 0:00:02.6]} 45. Qxf5 {[%clk 0:00:08.3]} 45... d3
{[%clk 0:00:03.2]} 46. Qf4 {[%clk 0:00:08.8]} 46... d2 {[%clk 0:00:03]} 47. e6+
{[%clk 0:00:09.1]} 47... Ka8 {[%clk 0:00:02.7]} 48. e7 {[%clk 0:00:06.4]} 48...
Rxe7 {[%clk 0:00:02.2]} 49. Qf6 {[%clk 0:00:02.5]} 49... d1=Q {[%clk 0:00:03.1]}
50. Ka3 {[%clk 0:00:02.5]} 50... Rd3+ {[%clk 0:00:02.5]} 0-1

[Event "Late-Titled-Tuesday-Blitz-January-23-2024"]
[Site "Chess.com"]
[Date "2024.01.23"]
[Round "9"]
[White "brm72"]
[Black "ContrVersia"]
[Result "1-0"]
[WhiteElo "2683"]
[BlackElo "2826"]
[TimeControl "180+1"]
[EndTime "15:43:23 PST"]
[Termination "brm72 won on time"]

1. e4 {[%clk 0:03:00.9]} 1... d6 {[%clk 0:02:59.5]} 2. d4 {[%clk 0:03:00.8]}
2... Nf6 {[%clk 0:02:59.6]} 3. Nc3 {[%clk 0:03:01.2]} 3... g6 {[%clk 0:02:59.8]}
4. Be3 {[%clk 0:03:00.9]} 4... Bg7 {[%clk 0:02:59.5]} 5. Qd2 {[%clk 0:03:00.1]}
5... c6 {[%clk 0:02:59.7]} 6. Bd3 {[%clk 0:02:49.1]} 6... b5 {[%clk 0:02:58.2]}
7. f3 {[%clk 0:02:48.5]} 7... Qa5 {[%clk 0:02:55.6]} 8. g4 {[%clk 0:02:45.2]}
8... h5 {[%clk 0:02:53]} 9. g5 {[%clk 0:02:44.7]} 9... Nfd7 {[%clk 0:02:53]} 10.
Nge2 {[%clk 0:02:16.4]} 10... Nb6 {[%clk 0:02:49.7]} 11. a3 {[%clk 0:02:07]}
11... Be6 {[%clk 0:02:37.8]} 12. d5 {[%clk 0:01:53]} 12... Bd7 {[%clk
0:02:36.7]} 13. Bd4 {[%clk 0:01:36.3]} 13... O-O {[%clk 0:02:19.4]} 14. Bxg7
{[%clk 0:01:33]} 14... Kxg7 {[%clk 0:02:20.3]} 15. dxc6 {[%clk 0:01:27]} 15...
Bxc6 {[%clk 0:02:16.5]} 16. O-O {[%clk 0:01:23.5]} 16... b4 {[%clk 0:02:03.2]}
17. axb4 {[%clk 0:01:13.5]} 17... Qxb4 {[%clk 0:02:04.1]} 18. Qe3 {[%clk
0:01:08.1]} 18... N8d7 {[%clk 0:01:53.8]} 19. f4 {[%clk 0:01:07.8]} 19... Qc5
{[%clk 0:01:51.1]} 20. Kf2 {[%clk 0:01:05.3]} 20... e5 {[%clk 0:01:45.1]} 21.
Qxc5 {[%clk 0:00:58.4]} 21... Nxc5 {[%clk 0:01:45.1]} 22. fxe5 {[%clk
0:00:55.4]} 22... dxe5 {[%clk 0:01:43]} 23. Ke3 {[%clk 0:00:55.1]} 23... a5
{[%clk 0:01:33.2]} 24. Rf6 {[%clk 0:00:50.4]} 24... Rac8 {[%clk 0:01:33.1]} 25.
Rxa5 {[%clk 0:00:45.7]} 25... Nbd7 {[%clk 0:01:33.3]} 26. Rd6 {[%clk 0:00:43.6]}
26... Nb7 {[%clk 0:01:31]} 27. Rxc6 {[%clk 0:00:36.8]} 27... Rxc6 {[%clk
0:01:31.1]} 28. Ra7 {[%clk 0:00:35.7]} 28... Nbc5 {[%clk 0:01:30]} 29. Nd5
{[%clk 0:00:33.8]} 29... Nxd3 {[%clk 0:01:23.1]} 30. cxd3 {[%clk 0:00:30.7]}
30... Nb6 {[%clk 0:01:17.8]} 31. Nf6 {[%clk 0:00:27.9]} 31... Rd8 {[%clk
0:01:12.6]} 32. Nc3 {[%clk 0:00:25.9]} 32... Ra8 {[%clk 0:00:52.5]} 33. Rb7
{[%clk 0:00:24.4]} 33... Nc8 {[%clk 0:00:43.3]} 34. h4 {[%clk 0:00:23.2]} 34...
Rb6 {[%clk 0:00:38.3]} 35. Rd7 {[%clk 0:00:18]} 35... Rxb2 {[%clk 0:00:36]} 36.
Rd8 {[%clk 0:00:17.2]} 36... Nb6 {[%clk 0:00:34.4]} 37. Rd6 {[%clk 0:00:16.3]}
37... Rc8 {[%clk 0:00:29.5]} 38. Ne2 {[%clk 0:00:14.5]} 38... Rb3 {[%clk
0:00:22.1]} 39. Kd2 {[%clk 0:00:13.6]} 39... Na4 {[%clk 0:00:20.5]} 40. Rd5
{[%clk 0:00:10.8]} 40... Rb2+ {[%clk 0:00:19]} 41. Ke3 {[%clk 0:00:10.9]} 41...
Nc5 {[%clk 0:00:16.5]} 42. Rxe5 {[%clk 0:00:08.5]} 42... Ne6 {[%clk 0:00:16.9]}
43. Nf4 {[%clk 0:00:06.7]} 43... Nxf4 {[%clk 0:00:16]} 44. Kxf4 {[%clk
0:00:07.6]} 44... Rh2 {[%clk 0:00:16]} 45. Kg3 {[%clk 0:00:07.8]} 45... Rh1
{[%clk 0:00:16.5]} 46. Rd5 {[%clk 0:00:07.7]} 46... Kf8 {[%clk 0:00:14.7]} 47.
Rd7 {[%clk 0:00:05.6]} 47... Rg1+ {[%clk 0:00:14.4]} 48. Kh3 {[%clk 0:00:05.3]}
48... Rd1 {[%clk 0:00:13.6]} 49. Kg3 {[%clk 0:00:05]} 49... Kg7 {[%clk
0:00:11.9]} 50. Kf4 {[%clk 0:00:03.7]} 50... Rf1+ {[%clk 0:00:09.2]} 51. Kg3
{[%clk 0:00:03.6]} 51... Rg1+ {[%clk 0:00:09.7]} 52. Kh3 {[%clk 0:00:03.4]}
52... Rgc1 {[%clk 0:00:08.1]} 53. Kg3 {[%clk 0:00:03.1]} 53... Kf8 {[%clk
0:00:07.8]} 54. Kf4 {[%clk 0:00:03]} 54... R1c7 {[%clk 0:00:07.4]} 55. Rd6
{[%clk 0:00:02.8]} 55... Ra7 {[%clk 0:00:05.5]} 56. d4 {[%clk 0:00:02]} 56...
Kg7 {[%clk 0:00:03.7]} 57. Ke5 {[%clk 0:00:02.4]} 57... Ra5+ {[%clk 0:00:03.5]}
58. d5 {[%clk 0:00:02.5]} 58... Ra1 {[%clk 0:00:03.4]} 59. Rd7 {[%clk
0:00:02.6]} 59... Rh1 {[%clk 0:00:03.1]} 60. Re7 {[%clk 0:00:03]} 60... Rxh4
{[%clk 0:00:02.7]} 61. d6 {[%clk 0:00:03.6]} 61... Rh1 {[%clk 0:00:01.1]} 62. d7
{[%clk 0:00:04]} 1-0

[Event "Late-Titled-Tuesday-Blitz-January-23-2024"]
[Site "Chess.com"]
[Date "2024.01.23"]
[Round "9"]
[White "ferdipy"]
[Black "GlavkonVVS"]
[Result "1/2-1/2"]
[WhiteElo "2342"]
[BlackElo "2508"]
[TimeControl "180+1"]
[EndTime "15:43:31 PST"]
[Termination "Game drawn by stalemate"]

1. e4 {[%clk 0:03:00]} 1... Nf6 {[%clk 0:02:59.2]} 2. e5 {[%clk 0:02:59.8]} 2...
Nd5 {[%clk 0:02:59]} 3. d4 {[%clk 0:03:00.7]} 3... d6 {[%clk 0:02:58.2]} 4. Nf3
{[%clk 0:03:01.6]} 4... Bg4 {[%clk 0:02:57.9]} 5. Be2 {[%clk 0:03:01.9]} 5... e6
{[%clk 0:02:58.1]} 6. O-O {[%clk 0:03:02.2]} 6... Be7 {[%clk 0:02:58.4]} 7. h3
{[%clk 0:03:02.5]} 7... Bh5 {[%clk 0:02:58.4]} 8. c4 {[%clk 0:03:00.3]} 8... Nb6
{[%clk 0:02:58.5]} 9. exd6 {[%clk 0:03:00]} 9... cxd6 {[%clk 0:02:58.8]} 10. b3
{[%clk 0:03:00.1]} 10... O-O {[%clk 0:02:58.6]} 11. Nc3 {[%clk 0:03:00.2]} 11...
d5 {[%clk 0:02:58.9]} 12. cxd5 {[%clk 0:02:58]} 12... Nxd5 {[%clk 0:02:58.2]}
13. Nxd5 {[%clk 0:02:57.8]} 13... Qxd5 {[%clk 0:02:58]} 14. Be3 {[%clk 0:02:57]}
14... Nc6 {[%clk 0:02:57.8]} 15. Qd2 {[%clk 0:02:30.4]} 15... Rfd8 {[%clk
0:02:52.9]} 16. Rad1 {[%clk 0:02:30.3]} 16... Bb4 {[%clk 0:02:50.6]} 17. Qd3
{[%clk 0:02:25.6]} 17... Rac8 {[%clk 0:02:40.8]} 18. Qc4 {[%clk 0:01:54]} 18...
Ba3 {[%clk 0:02:23]} 19. Qxd5 {[%clk 0:01:51.1]} 19... Rxd5 {[%clk 0:02:22.7]}
20. g4 {[%clk 0:01:49.3]} 20... Bg6 {[%clk 0:02:22.2]} 21. Bc4 {[%clk
0:01:49.7]} 21... Rdd8 {[%clk 0:02:21.6]} 22. Ne5 {[%clk 0:01:49]} 22... Be4
{[%clk 0:02:12.9]} 23. f4 {[%clk 0:01:29.7]} 23... Nb4 {[%clk 0:01:49.7]} 24. f5
{[%clk 0:01:25.6]} 24... Bd5 {[%clk 0:01:49.2]} 25. fxe6 {[%clk 0:01:15.5]}
25... f6 {[%clk 0:01:38.9]} 26. Nf7 {[%clk 0:00:42.9]} 26... Rf8 {[%clk
0:01:24.5]} 27. Nd6 {[%clk 0:00:34]} 27... Rc7 {[%clk 0:01:18]} 28. Nb5 {[%clk
0:00:33.1]} 28... Bxc4 {[%clk 0:01:13.6]} 29. bxc4 {[%clk 0:00:34]} 29... Rxc4
{[%clk 0:01:12.4]} 30. Nxa3 {[%clk 0:00:33.4]} 30... Rc3 {[%clk 0:01:12.6]} 31.
Bd2 {[%clk 0:00:32.4]} 31... Nxa2 {[%clk 0:00:57.3]} 32. Bxc3 {[%clk 0:00:29.7]}
32... Nxc3 {[%clk 0:00:57.5]} 33. Rd3 {[%clk 0:00:23.2]} 33... Nd5 {[%clk
0:00:56.5]} 34. Rb1 {[%clk 0:00:19.7]} 34... b6 {[%clk 0:00:56.2]} 35. Rc1
{[%clk 0:00:20.1]} 35... Nf4 {[%clk 0:00:55.6]} 36. Re3 {[%clk 0:00:19.4]} 36...
Re8 {[%clk 0:00:54.9]} 37. e7 {[%clk 0:00:19]} 37... Kf7 {[%clk 0:00:53.7]} 38.
Rc7 {[%clk 0:00:18]} 38... Nd5 {[%clk 0:00:53.7]} 39. Rec3 {[%clk 0:00:18.5]}
39... Nxc3 {[%clk 0:00:53.5]} 40. Rxc3 {[%clk 0:00:18.4]} 40... Rxe7 {[%clk
0:00:53.9]} 41. Kf2 {[%clk 0:00:18.5]} 41... a6 {[%clk 0:00:53.4]} 42. Rc6
{[%clk 0:00:18.1]} 42... Rd7 {[%clk 0:00:49.3]} 43. Nc2 {[%clk 0:00:18.3]} 43...
Rb7 {[%clk 0:00:45.1]} 44. Ke3 {[%clk 0:00:18.4]} 44... a5 {[%clk 0:00:45.1]}
45. Kd3 {[%clk 0:00:18.7]} 45... a4 {[%clk 0:00:40.2]} 46. Kc3 {[%clk
0:00:18.4]} 46... Kg6 {[%clk 0:00:37.4]} 47. h4 {[%clk 0:00:17.6]} 47... h5
{[%clk 0:00:36.9]} 48. g5 {[%clk 0:00:16.6]} 48... Kf5 {[%clk 0:00:37]} 49. gxf6
{[%clk 0:00:16.7]} 49... gxf6 {[%clk 0:00:37.2]} 50. Ne3+ {[%clk 0:00:17.1]}
50... Ke4 {[%clk 0:00:37]} 51. Nc4 {[%clk 0:00:17]} 51... b5 {[%clk 0:00:33.7]}
52. Nd6+ {[%clk 0:00:16.8]} 52... Kd5 {[%clk 0:00:34]} 53. Nxb7 {[%clk
0:00:17.7]} 53... Kxc6 {[%clk 0:00:33.9]} 54. Nc5 {[%clk 0:00:15.6]} 54... Kd5
{[%clk 0:00:33.1]} 55. Nd3 {[%clk 0:00:14.5]} 55... Ke4 {[%clk 0:00:30.1]} 56.
Nb4 {[%clk 0:00:13.6]} 56... f5 {[%clk 0:00:29.4]} 57. d5 {[%clk 0:00:12.2]}
57... Ke5 {[%clk 0:00:29.5]} 58. Kd3 {[%clk 0:00:12.1]} 58... f4 {[%clk
0:00:27.2]} 59. Ke2 {[%clk 0:00:11.4]} 59... a3 {[%clk 0:00:25.8]} 60. Kf3
{[%clk 0:00:11.7]} 60... a2 {[%clk 0:00:23.9]} 61. Nxa2 {[%clk 0:00:11.7]} 61...
Kxd5 {[%clk 0:00:24.3]} 62. Nc3+ {[%clk 0:00:12.1]} 62... Kc4 {[%clk 0:00:22.8]}
63. Nxb5 {[%clk 0:00:12.6]} 63... Kxb5 {[%clk 0:00:23.3]} 64. Kxf4 {[%clk
0:00:13.5]} 64... Kc6 {[%clk 0:00:24.2]} 65. Kg5 {[%clk 0:00:14.4]} 65... Kd6
{[%clk 0:00:24.9]} 66. Kxh5 {[%clk 0:00:15.3]} 66... Ke7 {[%clk 0:00:25.8]} 67.
Kg6 {[%clk 0:00:15.9]} 67... Kf8 {[%clk 0:00:26.7]} 68. Kh7 {[%clk 0:00:15.1]}
68... Kf7 {[%clk 0:00:26.9]} 69. h5 {[%clk 0:00:15.3]} 69... Kf8 {[%clk
0:00:27.1]} 70. Kh8 {[%clk 0:00:13.8]} 70... Kf7 {[%clk 0:00:27.1]} 71. Kh7
{[%clk 0:00:13.2]} 71... Kf8 {[%clk 0:00:27.4]} 72. Kg6 {[%clk 0:00:12.5]} 72...
Kg8 {[%clk 0:00:27.7]} 73. h6 {[%clk 0:00:13.1]} 73... Kh8 {[%clk 0:00:28.2]}
74. h7 {[%clk 0:00:13.5]} 1/2-1/2

[Event "Late-Titled-Tuesday-Blitz-January-23-2024"]
[Site "Chess.com"]
[Date "2024.01.23"]
[Round "9"]
[White "Hikaru"]
[Black "ChessFighter_2011"]
[Result "1-0"]
[WhiteElo "3282"]
[BlackElo "2935"]
[TimeControl "180+1"]
[EndTime "15:43:37 PST"]
[Termination "Hikaru won by resignation"]

1. Nf3 {[%clk 0:03:00.9]} 1... Nf6 {[%clk 0:02:59.9]} 2. b3 {[%clk 0:03:00.6]}
2... g6 {[%clk 0:02:59.9]} 3. Bb2 {[%clk 0:03:00]} 3... Bg7 {[%clk 0:02:59.4]}
4. d4 {[%clk 0:03:00.5]} 4... O-O {[%clk 0:02:59.6]} 5. e3 {[%clk 0:03:01]} 5...
d6 {[%clk 0:03:00]} 6. Be2 {[%clk 0:03:01]} 6... Nbd7 {[%clk 0:03:00.4]} 7. O-O
{[%clk 0:03:00.7]} 7... e5 {[%clk 0:03:00.7]} 8. dxe5 {[%clk 0:03:00.9]} 8...
Ng4 {[%clk 0:03:01.1]} 9. c4 {[%clk 0:03:01.2]} 9... Ngxe5 {[%clk 0:03:01.3]}
10. Nc3 {[%clk 0:03:01.1]} 10... Nxf3+ {[%clk 0:02:59.3]} 11. Bxf3 {[%clk
0:03:01.6]} 11... Ne5 {[%clk 0:03:00.2]} 12. Be2 {[%clk 0:03:01.7]} 12... Bd7
{[%clk 0:03:00.6]} 13. Qd2 {[%clk 0:03:01.5]} 13... Bc6 {[%clk 0:02:56.3]} 14.
Nd5 {[%clk 0:03:01]} 14... a5 {[%clk 0:02:52.9]} 15. Rac1 {[%clk 0:02:58.3]}
15... b6 {[%clk 0:02:53.1]} 16. Rfd1 {[%clk 0:02:55.8]} 16... f5 {[%clk
0:02:30.7]} 17. a3 {[%clk 0:02:40.8]} 17... Rf7 {[%clk 0:02:28.7]} 18. Ra1
{[%clk 0:02:31.1]} 18... Nd7 {[%clk 0:02:17.3]} 19. Bxg7 {[%clk 0:02:30.7]}
19... Rxg7 {[%clk 0:02:17.2]} 20. Rac1 {[%clk 0:02:29.9]} 20... Rf7 {[%clk
0:02:15.1]} 21. b4 {[%clk 0:02:27.2]} 21... axb4 {[%clk 0:02:15]} 22. axb4
{[%clk 0:02:28.1]} 22... Ne5 {[%clk 0:02:09.1]} 23. Rc3 {[%clk 0:02:19.2]} 23...
Ra7 {[%clk 0:01:57.9]} 24. Nf4 {[%clk 0:01:56]} 24... Qa8 {[%clk 0:01:53.7]} 25.
Rdc1 {[%clk 0:01:52.5]} 25... Ra2 {[%clk 0:01:36.3]} 26. R3c2 {[%clk 0:01:52]}
26... Rxc2 {[%clk 0:01:33.2]} 27. Rxc2 {[%clk 0:01:52.6]} 27... Qa1+ {[%clk
0:01:30]} 28. Rc1 {[%clk 0:01:52]} 28... Qa3 {[%clk 0:01:29.8]} 29. Qe1 {[%clk
0:01:19.3]} 29... Qb2 {[%clk 0:01:15.8]} 30. Ra1 {[%clk 0:01:16.7]} 30... Qc2
{[%clk 0:01:12.9]} 31. Rc1 {[%clk 0:01:12.3]} 31... Qb2 {[%clk 0:01:12.3]} 32.
Ne6 {[%clk 0:01:07.3]} 32... Be4 {[%clk 0:01:05]} 33. Ra1 {[%clk 0:00:44.3]}
33... Re7 {[%clk 0:01:04.8]} 34. Ng5 {[%clk 0:00:37.3]} 34... Bc6 {[%clk
0:01:01.4]} 35. h4 {[%clk 0:00:34.5]} 35... Nf7 {[%clk 0:00:51.3]} 36. Nh3
{[%clk 0:00:34.3]} 36... Qf6 {[%clk 0:00:47.7]} 37. b5 {[%clk 0:00:29.4]} 37...
Bb7 {[%clk 0:00:45.2]} 38. Ra7 {[%clk 0:00:27.6]} 38... Be4 {[%clk 0:00:45.3]}
39. f3 {[%clk 0:00:27.7]} 39... Bc2 {[%clk 0:00:39.5]} 40. Qd2 {[%clk 0:00:27]}
40... Qb2 {[%clk 0:00:34.9]} 41. Nf4 {[%clk 0:00:20.1]} 41... Qb1+ {[%clk
0:00:27.6]} 42. Kf2 {[%clk 0:00:18.1]} 42... Ne5 {[%clk 0:00:15.8]} 43. Nd5
{[%clk 0:00:18.4]} 43... Rf7 {[%clk 0:00:16.4]} 44. Rxc7 {[%clk 0:00:18.2]}
44... Rxc7 {[%clk 0:00:15.2]} 45. Nxc7 {[%clk 0:00:19.1]} 45... Bd3 {[%clk
0:00:16]} 46. Bxd3 {[%clk 0:00:14.5]} 46... Nxd3+ {[%clk 0:00:15.5]} 47. Kg3
{[%clk 0:00:15.2]} 47... h6 {[%clk 0:00:11.9]} 48. Ne8 {[%clk 0:00:13.6]} 48...
g5 {[%clk 0:00:11.3]} 49. hxg5 {[%clk 0:00:11.6]} 49... hxg5 {[%clk 0:00:12.2]}
50. Nxd6 {[%clk 0:00:11.5]} 50... f4+ {[%clk 0:00:10.5]} 51. exf4 {[%clk
0:00:11.1]} 51... gxf4+ {[%clk 0:00:10.3]} 52. Kh2 {[%clk 0:00:11.3]} 52... Qb3
{[%clk 0:00:07.1]} 53. Qe2 {[%clk 0:00:10.6]} 53... Qc3 {[%clk 0:00:07]} 54.
Qe8+ {[%clk 0:00:09.9]} 54... Kh7 {[%clk 0:00:07.5]} 55. Qf7+ {[%clk 0:00:10.4]}
55... Kh8 {[%clk 0:00:08.1]} 56. Qh5+ {[%clk 0:00:10]} 56... Kg7 {[%clk
0:00:07.6]} 57. Qg5+ {[%clk 0:00:08.6]} 57... Kh7 {[%clk 0:00:07.7]} 58. Nf5
{[%clk 0:00:07.5]} 58... Qe5 {[%clk 0:00:07.9]} 59. Qh5+ {[%clk 0:00:06.8]}
59... Kg8 {[%clk 0:00:08.4]} 60. Qg6+ {[%clk 0:00:07.1]} 60... Kf8 {[%clk
0:00:09]} 61. Qd6+ {[%clk 0:00:07.2]} 61... Qxd6 {[%clk 0:00:08.8]} 62. Nxd6
{[%clk 0:00:08.1]} 62... Ne5 {[%clk 0:00:09.7]} 63. g3 {[%clk 0:00:07]} 63...
Nxf3+ {[%clk 0:00:09.5]} 64. Kg2 {[%clk 0:00:07.2]} 64... Ne1+ {[%clk 0:00:10]}
65. Kf2 {[%clk 0:00:07.8]} 65... Nd3+ {[%clk 0:00:10.4]} 66. Kf3 {[%clk
0:00:08.4]} 66... fxg3 {[%clk 0:00:10.3]} 67. Nc8 {[%clk 0:00:08.6]} 67... Ne5+
{[%clk 0:00:10.1]} 68. Kxg3 {[%clk 0:00:09.1]} 68... Nxc4 {[%clk 0:00:11]} 69.
Kf4 {[%clk 0:00:08.5]} 69... Ke8 {[%clk 0:00:11.6]} 70. Ke4 {[%clk 0:00:08.4]}
70... Kd7 {[%clk 0:00:12.2]} 71. Kd5 {[%clk 0:00:08.4]} 71... Kxc8 {[%clk
0:00:12.4]} 72. Kxc4 {[%clk 0:00:08.7]} 72... Kd7 {[%clk 0:00:13]} 73. Kd5
{[%clk 0:00:09]} 73... Kc7 {[%clk 0:00:13.9]} 74. Ke6 {[%clk 0:00:09.3]} 74...
Kc8 {[%clk 0:00:14.8]} 75. Kd6 {[%clk 0:00:09.7]} 75... Kb7 {[%clk 0:00:15.5]}
76. Kd7 {[%clk 0:00:10]} 76... Kb8 {[%clk 0:00:16.2]} 77. Kc6 {[%clk 0:00:10.5]}
77... Ka7 {[%clk 0:00:17.1]} 78. Kc7 {[%clk 0:00:10.9]} 78... Ka8 {[%clk
0:00:16.4]} 79. Kxb6 {[%clk 0:00:11.8]} 79... Kb8 {[%clk 0:00:17.3]} 80. Ka6
{[%clk 0:00:11.7]} 80... Kc7 {[%clk 0:00:18.2]} 81. Ka7 {[%clk 0:00:11.8]} 1-0

[Event "Late-Titled-Tuesday-Blitz-January-23-2024"]
[Site "Chess.com"]
[Date "2024.01.23"]
[Round "9"]
[White "ArtemDyachuk"]
[Black "Oleksandr_Bortnyk"]
[Result "0-1"]
[WhiteElo "2646"]
[BlackElo "3046"]
[TimeControl "180+1"]
[EndTime "15:43:41 PST"]
[Termination "Oleksandr_Bortnyk won on time"]

1. e4 {[%clk 0:03:00.9]} 1... g6 {[%clk 0:02:52.5]} 2. d4 {[%clk 0:02:59.8]}
2... Bg7 {[%clk 0:02:51.2]} 3. Nc3 {[%clk 0:03:00.1]} 3... c6 {[%clk 0:02:51.8]}
4. h4 {[%clk 0:02:58.5]} 4... h5 {[%clk 0:02:46.8]} 5. Nf3 {[%clk 0:02:57.3]}
5... d5 {[%clk 0:02:46.5]} 6. Bd3 {[%clk 0:02:49.1]} 6... Bg4 {[%clk 0:02:42.7]}
7. e5 {[%clk 0:02:47.3]} 7... e6 {[%clk 0:02:40.2]} 8. Be3 {[%clk 0:02:42.2]}
8... Ne7 {[%clk 0:02:36.8]} 9. Qd2 {[%clk 0:02:40.4]} 9... Bxf3 {[%clk
0:02:35.7]} 10. gxf3 {[%clk 0:02:39.8]} 10... Nd7 {[%clk 0:02:25.5]} 11. Ne2
{[%clk 0:02:27.9]} 11... c5 {[%clk 0:02:24.1]} 12. c3 {[%clk 0:02:24.8]} 12...
c4 {[%clk 0:02:24.6]} 13. Bc2 {[%clk 0:02:24.5]} 13... b5 {[%clk 0:02:25.1]} 14.
Rg1 {[%clk 0:02:23.1]} 14... a5 {[%clk 0:02:24]} 15. Bg5 {[%clk 0:02:21.1]}
15... Bf8 {[%clk 0:02:21.1]} 16. b3 {[%clk 0:02:04.9]} 16... Nb6 {[%clk
0:02:12.8]} 17. Bf6 {[%clk 0:01:59.5]} 17... Rg8 {[%clk 0:02:11.4]} 18. a4
{[%clk 0:01:45.9]} 18... Qd7 {[%clk 0:02:03.9]} 19. axb5 {[%clk 0:01:42.4]}
19... cxb3 {[%clk 0:01:55.1]} 20. Bxb3 {[%clk 0:01:41.7]} 20... Qxb5 {[%clk
0:01:52.4]} 21. Bc2 {[%clk 0:01:34.8]} 21... a4 {[%clk 0:01:49.5]} 22. Bd3
{[%clk 0:01:20.5]} 22... Nc4 {[%clk 0:01:43.9]} 23. Qa2 {[%clk 0:01:20.3]} 23...
Nc6 {[%clk 0:01:28.2]} 24. Rb1 {[%clk 0:01:19.8]} 24... Qa6 {[%clk 0:01:20.9]}
25. Nf4 {[%clk 0:01:15.4]} 25... Kd7 {[%clk 0:01:15.6]} 26. Bxc4 {[%clk
0:00:59.7]} 26... Qxc4 {[%clk 0:01:06.5]} 27. Rb7+ {[%clk 0:00:58.8]} 27... Kc8
{[%clk 0:00:44.9]} 28. Qxc4 {[%clk 0:00:54.7]} 28... dxc4 {[%clk 0:00:45.8]} 29.
Rxf7 {[%clk 0:00:54.9]} 29... a3 {[%clk 0:00:45]} 30. Nxe6 {[%clk 0:00:42.6]}
30... a2 {[%clk 0:00:32.8]} 31. Ke2 {[%clk 0:00:41.4]} 31... Be7 {[%clk
0:00:33.5]} 32. Bxe7 {[%clk 0:00:40.2]} 32... Kd7 {[%clk 0:00:22.1]} 33. Bc5+
{[%clk 0:00:09.8]} 33... Kxe6 {[%clk 0:00:22.7]} 34. Rf6+ {[%clk 0:00:09.9]}
34... Kd7 {[%clk 0:00:23.6]} 35. Rf7+ {[%clk 0:00:09.8]} 35... Ke6 {[%clk
0:00:23]} 36. Rf6+ {[%clk 0:00:09.7]} 36... Kd7 {[%clk 0:00:23.8]} 37. e6+
{[%clk 0:00:08.7]} 37... Kc7 {[%clk 0:00:15.9]} 38. Rf7+ {[%clk 0:00:08.4]}
38... Kc8 {[%clk 0:00:16]} 39. Ra1 {[%clk 0:00:07.4]} 39... Nd8 {[%clk
0:00:15.5]} 40. Rf6 {[%clk 0:00:06]} 40... Re8 {[%clk 0:00:08.2]} 41. e7 {[%clk
0:00:06.2]} 41... Kd7 {[%clk 0:00:02.7]} 42. Kd2 {[%clk 0:00:05.3]} 42... Nc6
{[%clk 0:00:02.5]} 43. Rd6+ {[%clk 0:00:04.6]} 43... Kc7 {[%clk 0:00:02.9]} 44.
Rxg6 {[%clk 0:00:05]} 44... Na5 {[%clk 0:00:02.6]} 45. Bb6+ {[%clk 0:00:05.2]}
45... Kd7 {[%clk 0:00:03.1]} 46. Bxa5 {[%clk 0:00:05.5]} 46... Rxa5 {[%clk
0:00:04]} 47. Rg5 {[%clk 0:00:06]} 47... Ra4 {[%clk 0:00:03.7]} 48. Rb5 {[%clk
0:00:04.6]} 48... Kc6 {[%clk 0:00:02.5]} 49. Re5 {[%clk 0:00:04.4]} 49... Kd7
{[%clk 0:00:02.7]} 50. f4 {[%clk 0:00:04.7]} 50... Rb8 {[%clk 0:00:02.3]} 51. f5
{[%clk 0:00:04.3]} 51... Ke8 {[%clk 0:00:01.9]} 52. f6 {[%clk 0:00:03.5]} 52...
Kf7 {[%clk 0:00:02.4]} 53. e8=Q+ {[%clk 0:00:03.9]} 53... Rxe8 {[%clk
0:00:02.8]} 54. Rxe8 {[%clk 0:00:04.8]} 54... Kxe8 {[%clk 0:00:03.7]} 55. Kc2
{[%clk 0:00:05.3]} 55... Kf7 {[%clk 0:00:04.2]} 56. Kb2 {[%clk 0:00:05.7]} 56...
Ra6 {[%clk 0:00:04.6]} 57. Rxa2 {[%clk 0:00:05.7]} 57... Rxf6 {[%clk 0:00:05.5]}
58. Ka3 {[%clk 0:00:06.2]} 58... Rf4 {[%clk 0:00:05.6]} 59. Kb4 {[%clk
0:00:05.5]} 59... Rxh4 {[%clk 0:00:06.5]} 60. Kxc4 {[%clk 0:00:06]} 60... Rh1
{[%clk 0:00:07.4]} 61. Kc5 {[%clk 0:00:05.8]} 61... h4 {[%clk 0:00:08.3]} 62. d5
{[%clk 0:00:05.7]} 62... h3 {[%clk 0:00:08.5]} 63. Ra4 {[%clk 0:00:05.6]} 63...
Rc1 {[%clk 0:00:09]} 64. Rh4 {[%clk 0:00:03]} 64... Rxc3+ {[%clk 0:00:09.6]} 65.
Kd4 {[%clk 0:00:03.1]} 65... Ra3 {[%clk 0:00:09.4]} 66. Ke5 {[%clk 0:00:02.6]}
66... Rf3 {[%clk 0:00:09.3]} 67. Ke4 {[%clk 0:00:02.6]} 67... Ra3 {[%clk
0:00:08.9]} 68. f3 {[%clk 0:00:02.8]} 68... Ra4+ {[%clk 0:00:08.5]} 0-1